{"text_format":"1","workbook":"xlsx","n_sheets":5,"sheets":["Order form","Pricelist","Languages","LangBackup","Setup"],"not_rendered":{"charts":0,"images":1,"macros":1,"external_links":1,"defined_names":5,"comments":0,"pivot_tables":0},"unopened":[],"bounds":{"document_bytes":16777216,"sheet_cells":100000,"rows_first":2000,"rows_last":500,"rows_between":2000,"halvings":0,"cell_chars":16384,"cell_head_chars":4096},"cells_cut":0,"cells_raw":0,"read":"whole","date_system":"1900"}

{"sheet":"Order form","index":0,"n_rows":97,"n_cols":39,"rows_kept":97,"cut":false,"hidden":false,"merged":[[5,5,5,13],[5,18,5,25],[6,5,6,13],[46,16,46,35],[17,7,17,35],[25,16,25,25],[25,27,25,35],[22,16,22,35],[23,16,23,35],[24,16,24,25],[24,27,24,35],[12,5,12,13],[12,28,12,35],[45,16,45,35],[13,5,13,13],[12,18,12,25],[21,16,21,35],[13,18,13,25],[13,28,13,35],[55,16,55,35],[59,16,59,35],[1,12,1,27],[2,12,2,27],[1,6,1,11],[1,30,1,35],[11,5,11,13],[7,5,7,13],[8,5,8,13],[9,5,9,13],[10,5,10,13],[11,18,11,25],[7,18,7,25],[8,18,8,25],[9,18,9,25],[10,18,10,25],[2,30,2,35],[5,28,5,35],[6,18,6,25],[11,28,11,35],[8,28,8,35],[9,28,9,35],[10,28,10,35],[6,28,6,35],[69,16,69,35],[70,16,70,35],[62,16,62,26],[62,27,62,28],[62,29,62,35],[14,5,14,13],[14,28,14,35],[14,18,14,25],[18,7,18,35],[15,1,15,35],[17,1,17,6],[18,1,18,6],[26,16,26,35],[27,16,27,35],[60,16,60,35],[68,16,68,35],[61,16,61,26],[61,27,61,28],[61,29,61,35],[53,16,53,35],[56,16,56,35],[49,16,49,35],[50,16,50,35],[54,16,54,35],[47,16,47,35],[43,16,43,35],[44,16,44,35],[48,16,48,35],[28,16,28,35],[29,16,29,35],[7,28,7,35],[35,16,35,35],[37,16,37,35],[36,16,36,35],[30,16,30,35],[42,16,42,21],[42,22,42,26],[42,27,42,29],[42,30,42,35],[33,16,33,35],[39,16,39,35],[34,16,34,35],[38,16,38,25],[40,16,40,35],[41,16,41,35],[32,16,32,35],[31,16,31,35],[96,7,96,10],[72,16,72,35],[89,1,94,35],[83,16,83,35],[77,16,77,27],[77,30,77,35],[82,16,82,35],[84,16,84,35],[85,16,85,35],[96,25,96,35],[96,11,96,12],[96,13,96,15],[75,16,75,27],[76,16,76,27],[75,30,75,35],[76,30,76,35],[81,16,81,35],[80,16,80,35]]}
["STRATOS20210401EN"]
[100,"Idioma",null,null,null,null,"Español",null,null,null,null,null,"STRATOS SALVAESCALERAS",null,null,null,null,null,null,null,null,null,null,null,null,null,null,null,"Fecha",null,{"$f":"TODAY()","v":"2021-04-16"}]
[110,null,null,null,null,null,null,null,null,null,null,null,"FORMULARIO DE PEDIDO",null,null,null,null,null,null,null,null,null,null,null,null,null,null,null,"Versión",null,"STRATOS.LE.2021.A"]
[]
[null,null,null,null,null,null,null,null,null,null,null,null,null,null,"Distribuidor: (siempre rellena)",null,null,null,null,null,null,null,null,null,null,null,"Dirección de entrega: (siempre rellena)"]
[120,"Company:",null,null,null,"Lehner Lifttechnik GmbH",null,null,null,null,null,null,null,null,"Empresa",null,null,null,null,null,null,null,null,null,null,null,"Empresa"]
[130,"Name:",null,null,null,"Max Lehner",null,null,null,null,null,null,null,null,"Name:",null,null,null,null,null,null,null,null,null,null,null,"Name:"]
[140,"Adress:",null,null,null,"Salling 8",null,null,null,null,null,null,null,null,"Dirección",null,null,null,null,null,null,null,null,null,null,null,"Dirección"]
[150,"Postcode:",null,null,null,"A - 4724",null,null,null,null,null,null,null,null,"Código postal",null,null,null,null,null,null,null,null,null,null,null,"Código postal"]
[160,"City:",null,null,null,"Neukirchen am Walde",null,null,null,null,null,null,null,null,"Ciudad",null,null,null,null,null,null,null,null,null,null,null,"Ciudad"]
[170,"Country:",null,null,null,"Austria",null,null,null,null,null,null,null,null,"País",null,null,null,null,null,null,null,null,null,null,null,"País"]
[180,"Phone no:",null,null,null,"+43 7278 3514-0",null,null,null,null,null,null,null,null,"Teléfono",null,null,null,null,null,null,null,null,null,null,null,"Teléfono"]
[190,"E-mail:",null,null,null,"office@lehnerlifttechnik.at",null,null,null,null,null,null,null,null,"Email"]
[200,"ID:",null,null,null,"ATU22360601",null,null,null,null,null,null,null,null,"ID:"]
[210,"VAT ID:",null,null,null,"ATU22360601",null,null,null,null,null,null,null,null,"VAT ID:"]
[220,"Dirección de recogida de los equipos: Spedition Englmayer, Wiesenstrasse 71, 4600 Wels, Austria"]
[]
[null,"Producción no.",null,null,null,null,null,"Nombre (o número) de referencia del pedido"]
[230]
[]
[null,"Especificación de la guia"]
[1000,"Lugar de instalación",null,null,null,null,null,null,null,null,null,null,null,null,null,null,"Interior"]
[1010,"Lado de instalación",null,null,null,null,null,null,null,null,null,null,null,null,null,null,"Derecha"]
[1020,"Longitud de la guia en metros redondeados",null,null,null,null,null,null,null,null,null,null,null,null,null,null,3]
[1030,"Parada inferior",null,null,null,null,null,null,null,null,null,null,null,null,null,null,"Recto",null,null,null,null,null,null,null,null,null,null,{"$f":"IF(Q25=\"Recta con distancia al primer escalon\",\"mm desde el primer paso hasta el final de la silla\",\"\")","v":""}]
[1040,"Parada superior",null,null,null,null,null,null,null,null,null,null,null,null,null,null,"Directamente en el último paso",null,null,null,null,null,null,null,null,null,null,{"$f":"IF(Q26=\"Recta sobre el rellano superior\",\"mm desde el último paso hasta el final de la silla\",\"\")","v":""}]
[1050,"Número de curvas de 90"]
[null,"Número de curvas de 180"]
[1070,"Número de curvas especiales"]
[1080,"Guia  horizontal (inclinación <20°)",null,null,null,null,null,null,null,null,null,null,null,null,null,null,"No"]
[1090,"Longitud de la guia horizontal en metros"]
[1100,"Número de cambios de pendientes"]
[1120,"Número de paradas intermedias"]
[]
[null,"Especificaciones generales de la plataforma"]
[1130,"Ejecución",null,null,null,null,null,null,null,null,null,null,null,null,null,null,"Plataforma + guia (estándar)"]
[1140,"Asiento plegable",null,null,null,null,null,null,null,null,null,null,null,null,null,null,"Sin asiento abatible"]
[1150,"Capacidad de carga",null,null,null,null,null,null,null,null,null,null,null,null,null,null,"225 kg"]
[1160,"Dimensión de la plataforma",null,null,null,null,null,null,null,null,null,null,null,null,null,null,"800 x 1000mm",null,null,null,null,null,null,null,null,null,null,"x",null,"mm"]
[1170,"Mecanismo de plegado",null,null,null,null,null,null,null,null,null,null,null,null,null,null,"Automático"]
[1180,"Rampas de carga",null,null,null,null,null,null,null,null,null,null,null,null,null,null,"Rampa superior e inferior",null,null,null,null,null,null,null,null,null,null,"RAL:",null,"RAL:"]
[1190,"Rampa lateral plegable de 85 grados",null,null,null,null,null,null,null,null,null,null,null,null,null,null,"No (estándar)"]
[1200,"Longitud de las rampas",null,null,null,null,null,null,null,null,null,null,null,null,null,null,"Rampa superior",null,null,null,null,null,"200mm (estándar)",null,null,null,null,"Rampa inferior",null,null,"200mm (estándar)"]
[1210,"Superficie de las rampas",null,null,null,null,null,null,null,null,null,null,null,null,null,null,"Del mismo color que la plataforma"]
[1220,"Regleta lateral plegable",null,null,null,null,null,null,null,null,null,null,null,null,null,null,"No (estándar)"]
[1230,"Versión de control de plataforma",null,null,null,null,null,null,null,null,null,null,null,null,null,null,"Comandos solo de cable espiral (estándar)"]
[1240,"Controles de aterrizaje externo (siempre por radio)",null,null,null,null,null,null,null,null,null,null,null,null,null,null,"Teclado de membrana (estándar)"]
[1250,"Tipo de clave",null,null,null,null,null,null,null,null,null,null,null,null,null,null,"Mini llave"]
[1260,"Número total de controles externos de aterrizaje",null,null,null,null,null,null,null,null,null,null,null,null,null,null,{"$f":"Q33+2","v":2}]
[1270,"Posición de los mandos de aterrizaje exterior",null,null,null,null,null,null,null,null,null,null,null,null,null,null,"Montaje en pared (estándar)"]
[1280,"Extracción de llave en posición ON",null,null,null,null,null,null,null,null,null,null,null,null,null,null,"No (estándar)"]
[]
[null,"Funciones de seguridad acc. a la EN 81-40"]
[1300,"Fondo de seguridad",null,null,null,null,null,null,null,null,null,null,null,null,null,null,"Sí"]
[1310,"Regleta de seguridad laterales",null,null,null,null,null,null,null,null,null,null,null,null,null,null,"Sí"]
[1320,"Señal de sobrecarga",null,null,null,null,null,null,null,null,null,null,null,null,null,null,"Sí"]
[1340,"Señal visual (solución a medida)",null,null,null,null,null,null,null,null,null,null,null,null,null,null,"No"]
[]
[null,"Especificaciones adicionales"]
[1350,"Cubierta de plástico para elevador al aire libre",null,null,null,null,null,null,null,null,null,null,null,null,null,null,"No"]
[1370,"Candado contra el despliegue de la plataforma",null,null,null,null,null,null,null,null,null,null,null,null,null,null,"No (estándar)"]
[1380,"Rellenos de la guia",null,null,null,null,null,null,null,null,null,null,null,null,null,null,"Ninguno",null,null,null,null,null,null,null,null,null,null,null,null,"pcs"]
[1440,"Garantía",null,null,null,null,null,null,null,null,null,null,null,null,null,null,24,null,null,null,null,null,null,null,null,null,null,null,null,"months"]
[]
[]
[]
[]
[]
[1450,"Etiqueta de acero inoxidable",null,null,null,null,null,null,null,null,null,null,null,null,null,null,"Ninguno"]
[1470,"Caja de transporte",null,null,null,null,null,null,null,null,null,null,null,null,null,null,"Q1 - Standardbox"]
[1360]
[]
[]
[]
[null,"Tratamiento de superficies"]
[1530,"Plataforma y carro",null,null,null,null,null,null,null,null,null,null,null,null,null,null,"RAL 7035 (estándar)",null,null,null,null,null,null,null,null,null,null,null,null,{"$f":"IF(ISNUMBER(FIND(\"Special\",Q76)),\"RAL:\",\"\")","v":""},null,null,null,null,null,null,null,null,{"$f":"IF(Q22=\"outdoor\",\"Please remember to chose surface treatment for outdoor\", \"\")","v":""}]
[1540,"Guía",null,null,null,null,null,null,null,null,null,null,null,null,null,null,"RAL 7035 (estándar)",null,null,null,null,null,null,null,null,null,null,null,null,{"$f":"IF(ISNUMBER(FIND(\"Special\",Q77)),\"RAL:\",\"\")","v":""},null,null,null,null,null,null,null,null,{"$f":"IF(Q22=\"outdoor\",\"Please remember to chose surface treatment for outdoor\", \"\")","v":""}]
[1550,"Pilares",null,null,null,null,null,null,null,null,null,null,null,null,null,null,"RAL 7035 (estándar)",null,null,null,null,null,null,null,null,null,null,null,null,{"$f":"IF(ISNUMBER(FIND(\"Special\",Q78)),\"RAL:\",\"\")","v":""},null,null,null,null,null,null,null,null,{"$f":"IF(Q22=\"outdoor\",\"Please remember to chose surface treatment for outdoor\", \"\")","v":""}]
[]
[null,"Estructura de soporte"]
[1560,"Fijación de la guía",null,null,null,null,null,null,null,null,null,null,null,null,null,null,"Solo en los pilares"]
[1570,"Arreglo de pilares",null,null,null,null,null,null,null,null,null,null,null,null,null,null,"En los escalones (estándar)"]
[1580,"Ranuras de ajuste en los pilares",null,null,null,null,null,null,null,null,null,null,null,null,null,null,"Sí"]
[1590,"Base del pilar",null,null,null,null,null,null,null,null,null,null,null,null,null,null,"no especificado"]
[]
[]
[]
[null,"Información adicional"]
[]
[1620]
[]
[]
[]
[]
[]
[]
[240,"Fecha de entrega",null,null,null,null,null,"Semana",null,null,null,null,null,2021,null,null,null,null,null,null,null,"Preparado por"]

{"sheet":"Pricelist","index":1,"n_rows":68,"n_cols":9,"rows_kept":68,"cut":false,"hidden":true,"merged":[[32,1,36,1],[1,2,1,6],[6,3,6,5],[9,1,17,1],[18,1,20,1],[21,1,31,1],[37,1,41,1],[42,1,50,1],[51,1,54,1],[55,1,63,1],[67,2,67,5]]}
[null,"Pricelist","SP-STRATOS",null,null,null,{"$f":"'Order form'!AE3","v":"STRATOS.LE.2021.A"}]
[null,"Order reference name",{"$f":"'Order form'!H19","v":0},null,null,null,null,null,1]
[null,"Customer / Client ","Lehner Lifttechnik"]
[null,null,{"$f":"'Order form'!F9","v":"A - 4724"}]
[null,null,{"$f":"'Order form'!F10","v":"Neukirchen am Walde"}]
[null,null,{"$f":"'Order form'!F11","v":"Austria"}]
[null,null,"Item",null,null,null,"unit","EUR/unit","Price EUR"]
[null,"Basic price","Manual platform with 3m rail",{"$f":"IF(OR('Order form'!Q36=\"Platform + rail (standard)\",'Order form'!Q36=\"Platform only\"),1,0)","v":0},null,null,"pcs",{"$f":"'[1]Price list'!$C8","v":0},{"$f":"D8*H8","v":0}]
[null,null,null,null,null,null,null,{"$f":"'[1]Price list'!$C9","v":0}]
[null,"Rail","Rail additional to the 3m in basic price",{"$f":"IF('Order form'!Q24>3,'Order form'!Q24-3,0)","v":0},null,null,"m",{"$f":"'[1]Price list'!$C10","v":0},{"$f":"H10*D10","v":0}]
[null,null,"Bends in vertical section",{"$f":"'Order form'!Q32","v":0},null,null,"pcs",{"$f":"'[1]Price list'!$C11","v":0},0]
[null,null,"Basic price - Horizontal section - direct (angle of a rail < 20°)",{"$f":"IF('Order form'!Q30=\"straight\",1,0)","v":0},null,null,"pcs",{"$f":"'[1]Price list'!$C12","v":0},0]
[null,null,"Basic price - Horizontal section - with curve (angle of a rail < 20°)",{"$f":"IF('Order form'!Q30=\"with curve\",1,0)","v":0},null,null,"pcs",{"$f":"'[1]Price list'!$C13","v":0},0]
[null,null,"The length of horizontal section",{"$f":"'Order form'!Q31","v":0},null,null,"m",{"$f":"'[1]Price list'!$C14","v":0},0]
[null,null,"Color treated pillar (each 0.6m)",{"$f":"IF('Order form'!Q81=\"On the pillars only\",'Order form'!Q24/0.6+1,0)","v":0},null,null,"pcs",{"$f":"'[1]Price list'!$C15","v":0},{"$f":"H15*D15","v":0}]
[null,null,"Extra pillars for controls",{"$f":"IF('Order form'!Q49=\"pillar-mounted\",'Order form'!Q48,0)","v":0},null,null,"pcs",{"$f":"'[1]Price list'!$C16","v":0},{"$f":"H16*D16","v":0}]
[null,null,"Adjustable slots on pillars",{"$f":"IF('Order form'!Q83=\"yes\",D15,0)","v":0},null,null,"pcs",{"$f":"'[1]Price list'!$C17","v":0},{"$f":"H17*D17","v":0}]
[null,null,"Additional stop",{"$f":"IF('Order form'!Q33=\"0\",0,'Order form'!Q33)","v":0},null,null,"pcs",{"$f":"'[1]Price list'!$C18","v":0},0]
[null,"Curves","90° curve",{"$f":"'Order form'!Q27","v":0},null,null,"pcs",{"$f":"'[1]Price list'!$C19","v":0},0]
[null,null,"180° curve",{"$f":"'Order form'!Q28","v":0},null,null,"pcs",{"$f":"'[1]Price list'!$C20","v":0},0]
[null,null,"Special curve (nonstandard radius; each 90° or 3 m)",{"$f":"'Order form'!Q29","v":0},null,null,"pcs",{"$f":"'[1]Price list'!$C21","v":0},0]
[null,"Platform","Automatic folding",{"$f":"IF('Order form'!Q40=\"Automatic folding of platform\",1,0)","v":0},null,null,"pcs",{"$f":"'[1]Price list'!$C22","v":0},0]
[null,null,"Non standard platform dimensions",{"$f":"IF('Order form'!Q39=\"special\",1,0)","v":0},null,null,"pcs",{"$f":"'[1]Price list'!$C23","v":0},0]
[null,null,"Platform with front loading ramp",{"$f":"IF(OR('Order form'!Q41=\"Upper and lower ramp + 90° side access ramp \",'Order form'!Q41=\"Upper and 90° side access ramp (without lower)\"),1,0)","v":0},null,null,"pcs",{"$f":"'[1]Price list'!$C24","v":0},{"$f":"H24*D24","v":0}]
[null,null,"Front folding ramp 85o",{"$f":"IF('Order form'!Q42=\"yes\",1,0)","v":0},null,null,"pcs",{"$f":"'[1]Price list'!$C25","v":0},{"$f":"H25*D25","v":0}]
[null,null,"Platform without lower loading ramp",{"$f":"IF('Order form'!Q41=\"Upper and front ramp (without lower)\",1,0)","v":0},null,null,"pcs",{"$f":"'[1]Price list'!$C26","v":0},{"$f":"H26*D26","v":0}]
[null,null,"Folding sideboard",{"$f":"IF('Order form'!Q45=\"yes\",1,0)","v":0},null,null,"pcs",{"$f":"'[1]Price list'!$C27","v":0},{"$f":"H27*D27","v":0}]
[null,null,"The length of loading ramps 300mm",{"$f":"IF('Order form'!W43=\"300mm (special)\",1,(IF('Order form'!AE43=\"300mm (special)\",1,0)))","v":0},null,null,"pcs",{"$f":"'[1]Price list'!$C28","v":0},0]
[null,null,"Plastic cover",{"$f":"IF('Order form'!Q60=\"yes\",1,0)","v":0},null,null,"pcs",{"$f":"'[1]Price list'!$C29","v":0},0]
[null,null,"Padlock against unfolding of the platform by unauthorized user ",{"$f":"IF('Order form'!Q61=\"yes\",1,0)","v":0},null,null,"pcs",{"$f":"'[1]Price list'!$C30","v":0},0]
[null,null,"Folding upholstery seat",{"$f":"IF('Order form'!Q37=\"With upholstery folding seat\",1,0)","v":0},null,null,"pcs",{"$f":"'[1]Price list'!$C31","v":0},0]
[null,null,"Folding steel seat",{"$f":"IF('Order form'!Q37=\"With steel folding seat\",1,0)","v":0},null,null,"pcs",{"$f":"'[1]Price list'!$C32","v":0},0]
[null,"Rail fillings  ","Glass fillings between pillars",{"$f":"IF('Order form'!Q62=\"Connex glass\",'Order form'!AA62,0)","v":0},null,null,"pcs",{"$f":"'[1]Price list'!$C33","v":0},0]
[null,null,"Perforated metal plates between pillars",{"$f":"IF('Order form'!Q62=\"perforated metal plate\",'Order form'!AA62,0)","v":0},null,null,"pcs",{"$f":"'[1]Price list'!$C34","v":0},0]
[null,null,"Wooden fillings",{"$f":"IF('Order form'!Q62=\"wood\",'Order form'!AA62,0)","v":0},null,null,"pcs",{"$f":"'[1]Price list'!$C35","v":0},0]
[null,null,"Steel rods between pillars",{"$f":"IF('Order form'!Q62=\"steel rods\",'Order form'!AA62,0)","v":0},null,null,"pcs",{"$f":"'[1]Price list'!$C36","v":0},{"$f":"H36*D36","v":0}]
[null,null,"Stainless steel fillings",{"$f":"IF('Order form'!Q62=\"Stainless steel rods\",'Order form'!AA62,0)","v":0},null,null,"pcs",{"$f":"'[1]Price list'!$C37","v":0},0]
[null,"Controls","Radio controls with large push buttons (in compliance with EN81-40)",{"$f":"IF('Order form'!Q47=\"Big push buttons (special)\",'Order form'!Q49,0)","v":0},null,null,"pcs",{"$f":"'[1]Price list'!$C38","v":0},{"$f":"H38*D38","v":0}]
[null,null,"Extra control (2 pcs included in basic price)",{"$f":"'Order form'!Q49-2","v":0},null,null,"pcs",{"$f":"'[1]Price list'!$C39","v":0},{"$f":"H39*D39","v":0}]
[null,null,"Removing key in ON position",{"$f":"IF('Order form'!Q51=\"yes\",1,0)","v":0},null,null,"pcs",{"$f":"'[1]Price list'!$C40","v":0},{"$f":"H40*D40","v":0}]
[null,null,"EURO key",{"$f":"IF('Order form'!Q48=\"EURO key\",'Order form'!Q49,0)","v":0},null,null,"pcs",{"$f":"'[1]Price list'!$C41","v":0},{"$f":"H41*D41","v":0}]
[null,null,"Dual controls",{"$f":"IF(OR('Order form'!Q46=\"dual controls with joystick on the platform\",'Order form'!Q46=\"dual controls with push buttons on the platform\"),1,0)","v":0},null,null,"pcs",{"$f":"'[1]Price list'!$C42","v":0},{"$f":"H42*D42","v":0}]
[null,"Surface treatment","Non-standard RAL color treatment (other than RAL 7035 )",{"$f":"IF(OR('Order form'!AD76=\"RAL:\",'Order form'!AD77=\"RAL:\",'Order form'!AD78=\"RAL:\"),1,0)","v":0},null,null,"pcs",{"$f":"'[1]Price list'!$C43","v":0},0]
[null,null,"Zinc sprayed Rail, Brackets and Distances (outdoor installation)",{"$f":"IF(OR('Order form'!Q77=\"zinc + Special RAL (outdoor special)\",'Order form'!Q77=\"zinc + RAL 7035 (outdoor standard)\",'Order form'!Q77=\"zinc + RAL 9007 (outdoor standard)\"),D10+3,0)","v":0},null,null,"m",{"$f":"'[1]Price list'!$C44","v":0},0]
[null,null,"Fire zinc pillars (outdoor installation)",{"$f":"IF(OR('Order form'!Q78=\"Zinc + special RAL\",'Order form'!Q78=\"Zinc + RAL 7035 (outdoor standard)\",'Order form'!Q78=\"Zinc + RAL 9007 (outdoor standard)\"),D15,0)","v":0},null,null,"pcs",{"$f":"'[1]Price list'!$C45","v":0},0]
[null,null,"Zinc spraying of platform (outdoor installation)",{"$f":"IF(OR('Order form'!Q76=\"zinc + special RAL (outdoor special)\",'Order form'!Q76=\"zinc + RAL 7035 (outdoor standard)\",'Order form'!Q76=\"zinc + RAL 9007 (outdoor standard)\"),1,0)","v":0},null,null,"pcs",{"$f":"'[1]Price list'!$C46","v":0},0]
[null,null,"Stainless steel Platform and Carriage",{"$f":"IF('Order form'!Q76=\"stainless + Special RAL\",1,0)","v":0},null,null,"pcs",{"$f":"'[1]Price list'!$C47","v":0},0]
[null,null,"Stainless steel Rail, Brackets and Distances 304",{"$f":"IF('Order form'!Q77=\"stainless 304\",D10+3,0)","v":0},null,null,"m",{"$f":"'[1]Price list'!$C48","v":0},0]
[null,null,"Stainless steel Rail, Brackets and Distances 316",{"$f":"IF('Order form'!Q77=\"stainless 316 (special surcharge)\",D10+3,0)","v":0},null,null,"m",{"$f":"'[1]Price list'!$C49","v":0},0]
[null,null,"Stainless steel Pillars 304",{"$f":"IF('Order form'!Q78=\"stainless 304\",D15,0)","v":0},null,null,"pcs",{"$f":"'[1]Price list'!$C50","v":0},0]
[null,null,"Stainless steel Pillars 316",{"$f":"IF('Order form'!Q78=\"stainless 316 (special surcharge)\",D15,0)","v":0},null,null,"pcs",{"$f":"'[1]Price list'!$C51","v":0},0]
[null,"Safety features in compliance with       EN 81-40","Safety bottom",{"$f":"IF('Order form'!Q54=\"YES\",1,0)","v":0},null,null,"pcs",{"$f":"'[1]Price list'!$C52","v":0},0]
[null,null,"Lateral safety pads",{"$f":"IF('Order form'!Q55=\"YES\",1,0)","v":0},null,null,"pcs",{"$f":"'[1]Price list'!$C53","v":0},0]
[null,null,"Overload signals",{"$f":"IF('Order form'!Q56=\"YES\",1,0)","v":0},null,null,"pcs",{"$f":"'[1]Price list'!$C54","v":0},{"$f":"H54*D54","v":0}]
[null,null,"Visual signals (bespoke solution)",{"$f":"IF('Order form'!Q57=\"YES\",1,0)","v":0},null,null,"pcs",{"$f":"'[1]Price list'!$C55","v":0},{"$f":"D55*H55","v":0}]
[null,"Additional costs","Warranty (always fill out)",{"$f":"IF('Order form'!Q68=\"other\",'Order form'!AB68,'Order form'!Q68)","v":0},null,null,"months",{"$f":"'[1]Price list'!$C56","v":0},{"$f":"H56*D56","v":0}]
[null,null,null,null,null,null,null,{"$f":"'[1]Price list'!$C57","v":0}]
[null,null,null,null,null,null,null,{"$f":"'[1]Price list'!$C58","v":0}]
[null,null,null,null,null,null,null,{"$f":"'[1]Price list'!$C59","v":0}]
[null,null,null,null,null,null,null,{"$f":"'[1]Price list'!$C60","v":0}]
[null,null,"Transport box",{"$f":"IF('Order form'!Q70=\"-\",0,1)","v":1},null,null,"pcs",{"$f":"'[1]Price list'!$C61","v":0},{"$f":"H61*D61","v":0}]
[null,null,"Drawing time urgency",{"$f":"IF('Order form'!Q73=\"not specified\",0,(IF('Order form'!Q73>11,\"1\",(IF('Order form'!Q73>8,\"2\",(IF('Order form'!Q73>5,\"3\",4)))))))","v":4},null,null,"pcs",{"$f":"'[1]Price list'!$C62","v":0},{"$f":"H62*D62","v":0}]
[]
[]
[250,"Total price VAT excl.:",null,null,null,null,null,null,{"$f":"SUM(I8:I64)","v":0}]
[260,"Discount:",null,null,null,null,null,0,{"$f":"H66*I65","v":0}]
[270,"Final ALTECH price, VAT excl.:",null,null,null,null,null,null,{"$f":"I65-I66","v":0}]
[null,"Prepared by:",{"$f":"'Order form'!Z97","v":0},null,null,null,null,{"$f":"'Order form'!AE2","v":"2021-04-16"}]

{"sheet":"Languages","index":2,"n_rows":217,"n_cols":6,"rows_kept":217,"cut":false,"hidden":true,"merged":[]}
["Cell","Type","English","Deutsch","Français","Español"]
[{"$f":"CELL(\"address\",'Order form'!M2)","v":"'[STRATOS_Order form_2021.xlsm]Order form'!$M$2"},"Label","STRATOS STAIRLIFT","STRATOS PLATTFORMLIFT","STRATOS MONTE-ESCALIER","STRATOS SALVAESCALERAS"]
[{"$f":"CELL(\"address\",'Order form'!M3)","v":"'[STRATOS_Order form_2021.xlsm]Order form'!$M$3"},"Label","ORDER FORM","BESTELLFORMULAR","BON DE COMMANDE","FORMULARIO DE PEDIDO"]
[{"$f":"CELL(\"address\",'Order form'!AC2)","v":"'[STRATOS_Order form_2021.xlsm]Order form'!$AC$2"},"Label","Date","Datum","Date","Fecha"]
[{"$f":"CELL(\"address\",'Order form'!B2)","v":"'[STRATOS_Order form_2021.xlsm]Order form'!$B$2"},"Label","Language","Sprache","La langue","Idioma"]
[{"$f":"CELL(\"address\",'Order form'!AC3)","v":"'[STRATOS_Order form_2021.xlsm]Order form'!$AC$3"},"Label","Version","Version","Version","Versión"]
[{"$f":"CELL(\"address\",'Order form'!O5)","v":"'[STRATOS_Order form_2021.xlsm]Order form'!$O$5"},"Label","Distributor: (always fill out)","Händler: (immer ausfüllen)","Distributeur:","Distribuidor: (siempre rellena)"]
[{"$f":"CELL(\"address\",'Order form'!AA5)","v":"'[STRATOS_Order form_2021.xlsm]Order form'!$AA$5"},"Label","Delivery address: (always fill out)","Lieferadresse: (immer ausfüllen)","Adresse de livraison:","Dirección de entrega: (siempre rellena)"]
[{"$f":"CELL(\"address\",'Order form'!O6)","v":"'[STRATOS_Order form_2021.xlsm]Order form'!$O$6"},"Label","Company","Firma","Société","Empresa"]
[{"$f":"CELL(\"address\",'Order form'!AA6)","v":"'[STRATOS_Order form_2021.xlsm]Order form'!$AA$6"},"Label","Company","Firma","Société","Empresa"]
[{"$f":"CELL(\"address\",'Order form'!O8)","v":"'[STRATOS_Order form_2021.xlsm]Order form'!$O$8"},"Label","Address","Anschrift","Adresse","Dirección"]
[{"$f":"CELL(\"address\",'Order form'!AA8)","v":"'[STRATOS_Order form_2021.xlsm]Order form'!$AA$8"},"Label","Address","Anschrift","Adresse","Dirección"]
[{"$f":"CELL(\"address\",'Order form'!O9)","v":"'[STRATOS_Order form_2021.xlsm]Order form'!$O$9"},"Label","Postcode","PLZ","Code postal","Código postal"]
[{"$f":"CELL(\"address\",'Order form'!AA9)","v":"'[STRATOS_Order form_2021.xlsm]Order form'!$AA$9"},"Label","Postcode","PLZ","Code postal","Código postal"]
[{"$f":"CELL(\"address\",'Order form'!O10)","v":"'[STRATOS_Order form_2021.xlsm]Order form'!$O$10"},"Label","City","Stadt","Ville","Ciudad"]
[{"$f":"CELL(\"address\",'Order form'!AA10)","v":"'[STRATOS_Order form_2021.xlsm]Order form'!$AA$10"},"Label","City","Stadt","Ville","Ciudad"]
[{"$f":"CELL(\"address\",'Order form'!O11)","v":"'[STRATOS_Order form_2021.xlsm]Order form'!$O$11"},"Label","Country","Land","Le pays","País"]
[{"$f":"CELL(\"address\",'Order form'!AA11)","v":"'[STRATOS_Order form_2021.xlsm]Order form'!$AA$11"},"Label","Country","Land","Le pays","País"]
[{"$f":"CELL(\"address\",'Order form'!O12)","v":"'[STRATOS_Order form_2021.xlsm]Order form'!$O$12"},"Label","Telephone","Telefon","Téléphone","Teléfono"]
[{"$f":"CELL(\"address\",'Order form'!AA12)","v":"'[STRATOS_Order form_2021.xlsm]Order form'!$AA$12"},"Label","Telephone","Telefon","Téléphone","Teléfono"]
[{"$f":"CELL(\"address\",'Order form'!B22)","v":"'[STRATOS_Order form_2021.xlsm]Order form'!$B$22"},"Label","Installation location","Installationsort","Lieu d'installation","Lugar de instalación"]
[{"$f":"CELL(\"address\",'Order form'!B23)","v":"'[STRATOS_Order form_2021.xlsm]Order form'!$B$23"},"Label","Installation side","Montageseite","Côté d'installation","Lado de instalación"]
[{"$f":"CELL(\"address\",'Order form'!B16)","v":"'[STRATOS_Order form_2021.xlsm]Order form'!$B$16"},"Label","Pick up address for lifts: Spedition Englmayer, Wiesenstrasse 71, 4600 Wels, Austria","ABHOLADRESSE: Spedition Englmayer, Wiesenstrasse 71, 4600 Wels, Austria","Adresse de ramassage: Spedition Englmayer, Wiesenstrasse 71, 4600 Wels, Austria","Dirección de recogida de los equipos: Spedition Englmayer, Wiesenstrasse 71, 4600 Wels, Austria"]
[{"$f":"CELL(\"address\",'Order form'!B18)","v":"'[STRATOS_Order form_2021.xlsm]Order form'!$B$18"},"Label","Production no.","Produktionsnr.","Num. de production","Producción no."]
[{"$f":"CELL(\"address\",'Order form'!H18)","v":"'[STRATOS_Order form_2021.xlsm]Order form'!$H$18"},"Label","Order reference name (or number)","Auftragsreferenz (Name oder Nummer)","Nom de référence de la commande (ou numéro)","Nombre (o número) de referencia del pedido"]
[{"$f":"CELL(\"address\",'Order form'!B21)","v":"'[STRATOS_Order form_2021.xlsm]Order form'!$B$21"},"Label","Rail specification","Schienenspezifikation","Spécification de rail","Especificación de la guia"]
[{"$f":"CELL(\"address\",'Order form'!B24)","v":"'[STRATOS_Order form_2021.xlsm]Order form'!$B$24"},"Label","Rail length in meters rounded","Schienenlänge (ungefähr in m)","Longueur du rail en mètres arrondis","Longitud de la guia en metros redondeados"]
[{"$f":"CELL(\"address\",'Order form'!B25)","v":"'[STRATOS_Order form_2021.xlsm]Order form'!$B$25"},"Label","Lower stop","Untere Haltestelle","Arrêt inférieur","Parada inferior"]
[{"$f":"CELL(\"address\",'Order form'!B26)","v":"'[STRATOS_Order form_2021.xlsm]Order form'!$B$26"},"Label","Upper stop","Obere Haltestelle","Arrêt supérieur","Parada superior"]
[{"$f":"CELL(\"address\",'Order form'!B27)","v":"'[STRATOS_Order form_2021.xlsm]Order form'!$B$27"},"Label","Number of 90° curves","Anzahl der 90° Kurven","Nombre de courbes à 90°","Número de curvas de 90"]
[{"$f":"CELL(\"address\",'Order form'!B28)","v":"'[STRATOS_Order form_2021.xlsm]Order form'!$B$28"},"Label","Number of 180° curves","Anzahl der 180° Kurven","Nombre de courbes à 180°","Número de curvas de 180"]
[{"$f":"CELL(\"address\",'Order form'!B29)","v":"'[STRATOS_Order form_2021.xlsm]Order form'!$B$29"},"Label","Number of special curves","Anzahl der Spezialkurven","Nombre de courbes spéciales","Número de curvas especiales"]
[{"$f":"CELL(\"address\",'Order form'!B30)","v":"'[STRATOS_Order form_2021.xlsm]Order form'!$B$30"},"Label","Horizontal drive (inclination <20°)","Horizontalfahrt (Neigung <20°)","Parcours horizontal (inclination <20°)","Guia  horizontal (inclinación <20°)"]
[{"$f":"CELL(\"address\",'Order form'!B31)","v":"'[STRATOS_Order form_2021.xlsm]Order form'!$B$31"},"Label","Length of horizontal rail in meters","Länge Horizontalfahrt in Meter","Longeur parcours horizontal en mètres","Longitud de la guia horizontal en metros"]
[{"$f":"CELL(\"address\",'Order form'!B32)","v":"'[STRATOS_Order form_2021.xlsm]Order form'!$B$32"},"Label","Number of vertical bends","Anzahl vertikale Knicke","Nombre de courbures verticales","Número de cambios de pendientes"]
[{"$f":"CELL(\"address\",'Order form'!B33)","v":"'[STRATOS_Order form_2021.xlsm]Order form'!$B$33"},"Label","Number of intermediate stops","Anzahl der Zwischenhaltestellen","Nombre d'arrêts intermédiaires","Número de paradas intermedias"]
[{"$f":"CELL(\"address\",'Order form'!AB25)","v":"'[STRATOS_Order form_2021.xlsm]Order form'!$AB$25"},"Formula","=IF(Q25=\"straight start with bottom overrun\",\"mm from first step to end of platform\", \"\")","=IF(q25=\"Gerade mit horizontalem Auslauf\",\"mm von erster Stufe bis Ende Plattform\", \"\")","=IF(q25=\"Début droit avec dépassement du bas\",\"mm du premier pas à la fin de la plateforme\", \"\")","=IF(Q25=\"Recta con distancia al primer escalon\",\"mm desde el primer paso hasta el final de la silla\",\"\")"]
[{"$f":"CELL(\"address\",'Order form'!AB26)","v":"'[STRATOS_Order form_2021.xlsm]Order form'!$AB$26"},"Formula","=IF(q26=\"straight top overrun\",\"mm from last step to end of platform\", \"\")","=IF(q26=\"Gerader Überlauf\",\"mm von letzter Stufe bis Ende Plattform\", \"\")","=IF(q26=\"Débordement droit\",\"mm de la dernière étape à la fin de la plateforme\", \"\")","=IF(Q26=\"Recta sobre el rellano superior\",\"mm desde el último paso hasta el final de la silla\",\"\")"]
[{"$f":"CELL(\"address\",'Order form'!Q22)","v":"'[STRATOS_Order form_2021.xlsm]Order form'!$Q$22"},"Dropdown","Indoor","Innen","Intérieur","Interior"]
[{"$f":"CELL(\"address\",'Order form'!Q22)","v":"'[STRATOS_Order form_2021.xlsm]Order form'!$Q$22"},"Dropdown","Outdoor","Im Außenbereich","De plein air","Al aire libre"]
[{"$f":"CELL(\"address\",'Order form'!Q23)","v":"'[STRATOS_Order form_2021.xlsm]Order form'!$Q$23"},"Dropdown","Left","Links","La gauche","Izquierda"]
[{"$f":"CELL(\"address\",'Order form'!Q23)","v":"'[STRATOS_Order form_2021.xlsm]Order form'!$Q$23"},"Dropdown","Right","Rechts","Droite","Derecha"]
[{"$f":"CELL(\"address\",'Order form'!Q25)","v":"'[STRATOS_Order form_2021.xlsm]Order form'!$Q$25"},"Dropdown","Straight","Gerade","Tout droit","Recto"]
[{"$f":"CELL(\"address\",'Order form'!Q25)","v":"'[STRATOS_Order form_2021.xlsm]Order form'!$Q$25"},"Dropdown","Straight with steep start","Gerade mit Steilstart","Droit avec début raide","Recto con comienzo empinado"]
[{"$f":"CELL(\"address\",'Order form'!Q25)","v":"'[STRATOS_Order form_2021.xlsm]Order form'!$Q$25"},"Dropdown","Straight start with bottom overrun","Gerade mit horizontalem Auslauf","Début droit avec dépassement du bas","Recta con distancia al primer escalon"]
[{"$f":"CELL(\"address\",'Order form'!Q25)","v":"'[STRATOS_Order form_2021.xlsm]Order form'!$Q$25"},"Dropdown","90°","90°","90°","90°"]
[{"$f":"CELL(\"address\",'Order form'!Q25)","v":"'[STRATOS_Order form_2021.xlsm]Order form'!$Q$25"},"Dropdown","180°","180°","180°","180°"]
[{"$f":"CELL(\"address\",'Order form'!Q25)","v":"'[STRATOS_Order form_2021.xlsm]Order form'!$Q$25"},"Dropdown","Special curve","Spezialkurve","Courbe spéciale","Curva especial"]
[{"$f":"CELL(\"address\",'Order form'!Q26)","v":"'[STRATOS_Order form_2021.xlsm]Order form'!$Q$26"},"Dropdown","Straight at last step","Gerade an letzter Stufe","Droit à la dernière étape","Directamente en el último paso"]
[{"$f":"CELL(\"address\",'Order form'!Q26)","v":"'[STRATOS_Order form_2021.xlsm]Order form'!$Q$26"},"Dropdown","Straight top overrun","Gerader Überlauf","Débordement droit","Recta sobre el rellano superior"]
[{"$f":"CELL(\"address\",'Order form'!Q26)","v":"'[STRATOS_Order form_2021.xlsm]Order form'!$Q$26"},"Dropdown","90° on top landing","90° auf oberem Podest","Atterrissage supérieur à 90°","90 ° en el aterrizaje superior"]
[{"$f":"CELL(\"address\",'Order form'!Q26)","v":"'[STRATOS_Order form_2021.xlsm]Order form'!$Q$26"},"Dropdown","180° on top landing","180° auf oberem Podest","Atterrissage supérieur à 180°","180 ° en el aterrizaje superior"]
[{"$f":"CELL(\"address\",'Order form'!Q26)","v":"'[STRATOS_Order form_2021.xlsm]Order form'!$Q$26"},"Dropdown","Special curve on top landing","Spezialkurve auf oberem Podest","Courbe spéciale sur le palier supérieur","Curva especial en el aterrizaje superior."]
[{"$f":"CELL(\"address\",'Order form'!Q30)","v":"'[STRATOS_Order form_2021.xlsm]Order form'!$Q$30"},"Dropdown","No","Nein","Non","No"]
[{"$f":"CELL(\"address\",'Order form'!Q30)","v":"'[STRATOS_Order form_2021.xlsm]Order form'!$Q$30"},"Dropdown","Straight","Gerade","Droit","Recto"]
[{"$f":"CELL(\"address\",'Order form'!Q30)","v":"'[STRATOS_Order form_2021.xlsm]Order form'!$Q$30"},"Dropdown","With curve","Mit Kurve","Avec courbe","Con curva"]
[{"$f":"CELL(\"address\",'Order form'!B35)","v":"'[STRATOS_Order form_2021.xlsm]Order form'!$B$35"},"Label","General platform specifications","Plattformausführung","Données techniques","Especificaciones generales de la plataforma"]
[{"$f":"CELL(\"address\",'Order form'!B36)","v":"'[STRATOS_Order form_2021.xlsm]Order form'!$B$36"},"Label","Excecution","Ausführung","Exécution","Ejecución"]
[{"$f":"CELL(\"address\",'Order form'!B37)","v":"'[STRATOS_Order form_2021.xlsm]Order form'!$B$37"},"Label","Folding seat","Klappsitz","Siège rabattable","Asiento plegable"]
[{"$f":"CELL(\"address\",'Order form'!B38)","v":"'[STRATOS_Order form_2021.xlsm]Order form'!$B$38"},"Label","Loading capacity","Traglast","Charge max.","Capacidad de carga"]
[{"$f":"CELL(\"address\",'Order form'!B39)","v":"'[STRATOS_Order form_2021.xlsm]Order form'!$B$39"},"Label","Platform dimension","Plattformgröße","Dimensions plate-forme","Dimensión de la plataforma"]
[{"$f":"CELL(\"address\",'Order form'!B40)","v":"'[STRATOS_Order form_2021.xlsm]Order form'!$B$40"},"Label","Folding mechanism","Klappmechanismus","Ouverture/fermeture plate-forme","Mecanismo de plegado"]
[{"$f":"CELL(\"address\",'Order form'!B41)","v":"'[STRATOS_Order form_2021.xlsm]Order form'!$B$41"},"Label","Loading ramps","Auffahrrampen","Rampes d'accès","Rampas de carga"]
[{"$f":"CELL(\"address\",'Order form'!B42)","v":"'[STRATOS_Order form_2021.xlsm]Order form'!$B$42"},"Label","Special 90° side access ramp (folds 85°)","Spezielle 90° seitliche Auffahrrampe (klappt 85°)","Rampe d'accès latérale 85°","Rampa lateral plegable de 85 grados"]
[{"$f":"CELL(\"address\",'Order form'!B43)","v":"'[STRATOS_Order form_2021.xlsm]Order form'!$B$43"},"Label","Ramps length","Rampenlänge","Longueur des rampes","Longitud de las rampas"]
[{"$f":"CELL(\"address\",'Order form'!Q43)","v":"'[STRATOS_Order form_2021.xlsm]Order form'!$Q$43"},"Label","Upper ramp","Obere Rampe","Rampe superieure","Rampa superior"]
[{"$f":"CELL(\"address\",'Order form'!AB43)","v":"'[STRATOS_Order form_2021.xlsm]Order form'!$AB$43"},"Label","Lower ramp","Untere Rampe","Rampe inferieure","Rampa inferior"]
[{"$f":"CELL(\"address\",'Order form'!B44)","v":"'[STRATOS_Order form_2021.xlsm]Order form'!$B$44"},"Label","Ramps surface","Rampenoberfläche","Couleur des rampes","Superficie de las rampas"]
[{"$f":"CELL(\"address\",'Order form'!B45)","v":"'[STRATOS_Order form_2021.xlsm]Order form'!$B$45"},"Label","Folding sideboard","Klappbares Seitenboard","Panneau latéral pliant","Regleta lateral plegable"]
[{"$f":"CELL(\"address\",'Order form'!B46)","v":"'[STRATOS_Order form_2021.xlsm]Order form'!$B$46"},"Label","Platform control","Plattformbedienung","Commande sur plate-forme","Versión de control de plataforma"]
[{"$f":"CELL(\"address\",'Order form'!B47)","v":"'[STRATOS_Order form_2021.xlsm]Order form'!$B$47"},"Label","External landing controls (always radio)","Funk-Außensteuerungen","Stations de rappel à IR","Controles de aterrizaje externo (siempre por radio)"]
[{"$f":"CELL(\"address\",'Order form'!B48)","v":"'[STRATOS_Order form_2021.xlsm]Order form'!$B$48"},"Label","Type of key","Schlüssel","Clé","Tipo de clave"]
[{"$f":"CELL(\"address\",'Order form'!B49)","v":"'[STRATOS_Order form_2021.xlsm]Order form'!$B$49"},"Label","Total no. of external landing controls","Anzahl der Außensteuerungen","Numero des télécommandes","Número total de controles externos de aterrizaje"]
[{"$f":"CELL(\"address\",'Order form'!B50)","v":"'[STRATOS_Order form_2021.xlsm]Order form'!$B$50"},"Label","Position of the external landing controls","Position der Außensteuerungen","Position des télécommandes","Posición de los mandos de aterrizaje exterior"]
[{"$f":"CELL(\"address\",'Order form'!B51)","v":"'[STRATOS_Order form_2021.xlsm]Order form'!$B$51"},"Label","Removing key in ON position","Schlüssel abziehbar in EIN-Position","Clé amovible","Extracción de llave en posición ON"]
[{"$f":"CELL(\"address\",'Order form'!Q36)","v":"'[STRATOS_Order form_2021.xlsm]Order form'!$Q$36"},"Dropdown","Platform + rail (standard)","Kompletter Lift mit maßgefertigter Schiene","Plateforme + rail sur mesure (standard)","Plataforma + guia (estándar)"]
[{"$f":"CELL(\"address\",'Order form'!Q36)","v":"'[STRATOS_Order form_2021.xlsm]Order form'!$Q$36"},"Dropdown","Rail only","Nur Schiene","Rail seulement","Sólo guia"]
[{"$f":"CELL(\"address\",'Order form'!Q37)","v":"'[STRATOS_Order form_2021.xlsm]Order form'!$Q$37"},"Dropdown","Without folding seat","Ohne Klappsitz","Sans siège rabattable","Sin asiento abatible"]
[{"$f":"CELL(\"address\",'Order form'!Q37)","v":"'[STRATOS_Order form_2021.xlsm]Order form'!$Q$37"},"Dropdown","With upholstery folding seat","Klappsitz mit Polsterung","Siège pliant avec rembourrage","Con asiento abatible tapizado."]
[{"$f":"CELL(\"address\",'Order form'!Q37)","v":"'[STRATOS_Order form_2021.xlsm]Order form'!$Q$37"},"Dropdown","With steel folding seat","Klappsitz aus Stahl beschichtet","Siège rabattable en acier revêtu","Con asiento abatible de acero"]
[{"$f":"CELL(\"address\",'Order form'!Q38)","v":"'[STRATOS_Order form_2021.xlsm]Order form'!$Q$38"},"Dropdown","150 kg","150 kg","150 kg","150 kg"]
[{"$f":"CELL(\"address\",'Order form'!Q38)","v":"'[STRATOS_Order form_2021.xlsm]Order form'!$Q$38"},"Dropdown","200 kg","200 kg","200 kg","200 kg"]
[{"$f":"CELL(\"address\",'Order form'!Q38)","v":"'[STRATOS_Order form_2021.xlsm]Order form'!$Q$38"},"Dropdown","225 kg","225 kg","225 kg","225 kg"]
[{"$f":"CELL(\"address\",'Order form'!Q38)","v":"'[STRATOS_Order form_2021.xlsm]Order form'!$Q$38"},"Dropdown","250 kg","250 kg","250 kg","250 kg"]
[{"$f":"CELL(\"address\",'Order form'!Q38)","v":"'[STRATOS_Order form_2021.xlsm]Order form'!$Q$38"},"Dropdown","300 kg","300 kg","300 kg","300 kg"]
[{"$f":"CELL(\"address\",'Order form'!Q39)","v":"'[STRATOS_Order form_2021.xlsm]Order form'!$Q$39"},"Dropdown","700 x 750 mm","700 x 750 mm","700 x 750 mm","700 x 750 mm"]
[{"$f":"CELL(\"address\",'Order form'!Q39)","v":"'[STRATOS_Order form_2021.xlsm]Order form'!$Q$39"},"Dropdown","750 x 850 mm","750 x 850 mm","750 x 850 mm","750 x 850 mm"]
[{"$f":"CELL(\"address\",'Order form'!Q39)","v":"'[STRATOS_Order form_2021.xlsm]Order form'!$Q$39"},"Dropdown","800 x 900 mm","800 x 900 mm","800 x 900 mm","800 x 900 mm"]
[{"$f":"CELL(\"address\",'Order form'!Q39)","v":"'[STRATOS_Order form_2021.xlsm]Order form'!$Q$39"},"Dropdown","800 x 1000mm","800 x 1000mm","800 x 1000mm","800 x 1000mm"]
[{"$f":"CELL(\"address\",'Order form'!Q39)","v":"'[STRATOS_Order form_2021.xlsm]Order form'!$Q$39"},"Dropdown","Special","Special","Special","Special"]
[{"$f":"CELL(\"address\",'Order form'!Q40)","v":"'[STRATOS_Order form_2021.xlsm]Order form'!$Q$40"},"Dropdown","Automatic folding of platform","Automatisches Klappen der Plattform","Automatiquement","Automático"]
[{"$f":"CELL(\"address\",'Order form'!Q40)","v":"'[STRATOS_Order form_2021.xlsm]Order form'!$Q$40"},"Dropdown","Manual folding of platform","Manuelles Klappen der Plattform","Manuellement","Manual"]
[{"$f":"CELL(\"address\",'Order form'!Q41)","v":"'[STRATOS_Order form_2021.xlsm]Order form'!$Q$41"},"Dropdown","Upper and lower ramp","Obere und untere Rampe","Rampe supérieure et inférieure","Rampa superior e inferior"]
[{"$f":"CELL(\"address\",'Order form'!Q41)","v":"'[STRATOS_Order form_2021.xlsm]Order form'!$Q$41"},"Dropdown","Upper and lower ramp + 90° side access ramp ","Obere und untere Rampe + 90° seitliche Auffahrrampe","Rampe supérieure et inférieure + latérale à 90 °","Rampa superior e inferior + acceso lateral a 90 °"]
[{"$f":"CELL(\"address\",'Order form'!Q41)","v":"'[STRATOS_Order form_2021.xlsm]Order form'!$Q$41"},"Dropdown","Upper and 90° side access ramp (without lower)","Obere und 90° seitliche Auffahrrampe (ohne untere Rampe)","Rampe supérieure et latérale (sans la rampe intérieure)","Rampa superior y lateral (sin rampa inferior)"]
[{"$f":"CELL(\"address\",'Order form'!Q42)","v":"'[STRATOS_Order form_2021.xlsm]Order form'!$Q$42"},"Dropdown","No (standard)","Nein (Standard)","Non (standard)","No (estándar)"]
[{"$f":"CELL(\"address\",'Order form'!Q42)","v":"'[STRATOS_Order form_2021.xlsm]Order form'!$Q$42"},"Dropdown","Yes","Ja","Oui","Sí"]
[{"$f":"CELL(\"address\",'Order form'!AE43)","v":"'[STRATOS_Order form_2021.xlsm]Order form'!$AE$43"},"Dropdown","150mm","150mm","150mm","150mm"]
[{"$f":"CELL(\"address\",'Order form'!AE43)","v":"'[STRATOS_Order form_2021.xlsm]Order form'!$AE$43"},"Dropdown","200mm (standard)","200mm (Standard)","200mm (standard)","200mm (estándar)"]
[{"$f":"CELL(\"address\",'Order form'!AE43)","v":"'[STRATOS_Order form_2021.xlsm]Order form'!$AE$43"},"Dropdown","300mm (special)","300mm (Spezial)","300mm (special)","300mm (especial)"]
[{"$f":"CELL(\"address\",'Order form'!W43)","v":"'[STRATOS_Order form_2021.xlsm]Order form'!$W$43"},"Dropdown","150mm","150mm","150mm","150mm"]
[{"$f":"CELL(\"address\",'Order form'!W43)","v":"'[STRATOS_Order form_2021.xlsm]Order form'!$W$43"},"Dropdown","200mm (standard)","200mm (Standard)","200mm (standard)","200mm (estándar)"]
[{"$f":"CELL(\"address\",'Order form'!W43)","v":"'[STRATOS_Order form_2021.xlsm]Order form'!$W$43"},"Dropdown","300mm (special)","300mm (Spezial)","300mm (special)","300mm (especial)"]
[{"$f":"CELL(\"address\",'Order form'!Q44)","v":"'[STRATOS_Order form_2021.xlsm]Order form'!$Q$44"},"Dropdown","Same colour as platform","Gleiche Farbe wie Plattform","La même couleur que la plate-forme","Del mismo color que la plataforma"]
[{"$f":"CELL(\"address\",'Order form'!Q44)","v":"'[STRATOS_Order form_2021.xlsm]Order form'!$Q$44"},"Dropdown","No colour (aluminium natural)","Keine Farbe (Aluminium unbeschichtet)","Pas de couleur (aluminium non revêtu)","Sin color (aluminio natural)"]
[{"$f":"CELL(\"address\",'Order form'!Q45)","v":"'[STRATOS_Order form_2021.xlsm]Order form'!$Q$45"},"Dropdown","No (standard)","Nein (Standard)","Non (standard)","No (estándar)"]
[{"$f":"CELL(\"address\",'Order form'!Q45)","v":"'[STRATOS_Order form_2021.xlsm]Order form'!$Q$45"},"Dropdown","Yes","Ja","Oui","Sí"]
[{"$f":"CELL(\"address\",'Order form'!Q46)","v":"'[STRATOS_Order form_2021.xlsm]Order form'!$Q$46"},"Dropdown","All commands on controls on spiral cable (standard)","Handkassette am Spiralkabel (Standard)","Commande sur fil spiralé","Comandos solo de cable espiral (estándar)"]
[{"$f":"CELL(\"address\",'Order form'!Q46)","v":"'[STRATOS_Order form_2021.xlsm]Order form'!$Q$46"},"Dropdown","Alarm + STOP on platform + controls on spiral cable","Alarm + STOP auf Plattform + Handkassette","Alarm + STOP sur plateforme + commande sur fil spiralé","Alarma + STOP en plataforma + controles en cable espiral"]
[{"$f":"CELL(\"address\",'Order form'!Q46)","v":"'[STRATOS_Order form_2021.xlsm]Order form'!$Q$46"},"Dropdown","Alarm + STOP + joystick on platform","Alarm + STOP + Joystick auf Plattform","Alarm + STOP + joystick sur la plateforme","Alarma + STOP + joystick en plataforma"]
[{"$f":"CELL(\"address\",'Order form'!Q46)","v":"'[STRATOS_Order form_2021.xlsm]Order form'!$Q$46"},"Dropdown","Alarm + STOP + push buttons on platform","Alarm + STOP + Druckknöpfe auf Plattform","Alarm + STOP + boutons-pression sur la plateforme","Alarma + STOP + pulsadores en plataforma."]
[{"$f":"CELL(\"address\",'Order form'!Q46)","v":"'[STRATOS_Order form_2021.xlsm]Order form'!$Q$46"},"Dropdown","Dual controls with joystick","Handkassette + Joystick auf Plattform","Commande sur fil spiralé + joystick","Controles duales con joystick"]
[{"$f":"CELL(\"address\",'Order form'!Q46)","v":"'[STRATOS_Order form_2021.xlsm]Order form'!$Q$46"},"Dropdown","Dual controls with push buttons","Handkassette + Druckknöpfe auf Plattform","Commande sur fil spiralé + boutons-pression","Controles duales con pulsadores"]
[{"$f":"CELL(\"address\",'Order form'!Q47)","v":"'[STRATOS_Order form_2021.xlsm]Order form'!$Q$47"},"Dropdown","Remote with Membrane keypad (standard)","Außensteuerung mit Folientastatur (Standard)","Clavier à membrane (standard)","Teclado de membrana (estándar)"]
[{"$f":"CELL(\"address\",'Order form'!Q47)","v":"'[STRATOS_Order form_2021.xlsm]Order form'!$Q$47"},"Dropdown","Remote with Big push buttons (special)","Außensteuerung mit großen Druckknöpfen (Spezial)","Gros boutons poussoirs (special)","Pulsadores grandes (especiales)"]
[{"$f":"CELL(\"address\",'Order form'!Q48)","v":"'[STRATOS_Order form_2021.xlsm]Order form'!$Q$48"},"Dropdown","Without key","Ohne Schlüssel","Sans clé","Sin llave"]
[{"$f":"CELL(\"address\",'Order form'!Q48)","v":"'[STRATOS_Order form_2021.xlsm]Order form'!$Q$48"},"Dropdown","Mini key","Mini Schlüssel","Mini clé","Mini llave"]
[{"$f":"CELL(\"address\",'Order form'!Q48)","v":"'[STRATOS_Order form_2021.xlsm]Order form'!$Q$48"},"Dropdown","BACO key","BACO Schlüssel","BACO clé","Tecla BACO"]
[{"$f":"CELL(\"address\",'Order form'!Q48)","v":"'[STRATOS_Order form_2021.xlsm]Order form'!$Q$48"},"Dropdown","EURO key","EURO Schlüssel","EURO clé","Clave del euro"]
[{"$f":"CELL(\"address\",'Order form'!Q50)","v":"'[STRATOS_Order form_2021.xlsm]Order form'!$Q$50"},"Dropdown","Wall mounted (standard)","Wandbefestigung (Standard)","Mural","Montaje en pared (estándar)"]
[{"$f":"CELL(\"address\",'Order form'!Q50)","v":"'[STRATOS_Order form_2021.xlsm]Order form'!$Q$50"},"Dropdown","Pillar mounted","Stützenbefestigung","Monté sur poteau","Montaje en columna"]
[{"$f":"CELL(\"address\",'Order form'!Q51)","v":"'[STRATOS_Order form_2021.xlsm]Order form'!$Q$51"},"Dropdown","No (standard)","Nein (Standard)","Non (standard)","No (estándar)"]
[{"$f":"CELL(\"address\",'Order form'!Q51)","v":"'[STRATOS_Order form_2021.xlsm]Order form'!$Q$51"},"Dropdown","Yes","Ja","Oui","Sí"]
[{"$f":"CELL(\"address\",'Order form'!B53)","v":"'[STRATOS_Order form_2021.xlsm]Order form'!$B$53"},"Label","Safety features acc. to EN 81-40","Sicherheitsoptionen gemäß EN 81:40","Options de sécurité selon EN 81:40","Funciones de seguridad acc. a la EN 81-40"]
[{"$f":"CELL(\"address\",'Order form'!B54)","v":"'[STRATOS_Order form_2021.xlsm]Order form'!$B$54"},"Label","Safety bottom","Kontaktboden","Fond de sécurité","Fondo de seguridad"]
[{"$f":"CELL(\"address\",'Order form'!B55)","v":"'[STRATOS_Order form_2021.xlsm]Order form'!$B$55"},"Label","Lateral contact bars","Seitliche Kontaktleisten","Bords sensibles plate-forme","Regleta de seguridad laterales"]
[{"$f":"CELL(\"address\",'Order form'!B56)","v":"'[STRATOS_Order form_2021.xlsm]Order form'!$B$56"},"Label","Overload signal","Überlastsignal","Contrôle de surcharge","Señal de sobrecarga"]
[{"$f":"CELL(\"address\",'Order form'!B57)","v":"'[STRATOS_Order form_2021.xlsm]Order form'!$B$57"},"Label","Visual signal (bespoke solution)","Visuelles Signal","Signal visuel sur la plate-forme","Señal visual (solución a medida)"]
[{"$f":"CELL(\"address\",'Order form'!Q54)","v":"'[STRATOS_Order form_2021.xlsm]Order form'!$Q$54"},"Dropdown","Yes","Ja","Oui","Sí"]
[{"$f":"CELL(\"address\",'Order form'!Q54)","v":"'[STRATOS_Order form_2021.xlsm]Order form'!$Q$54"},"Dropdown","No","Nein","Non","No"]
[{"$f":"CELL(\"address\",'Order form'!Q55)","v":"'[STRATOS_Order form_2021.xlsm]Order form'!$Q$55"},"Dropdown","Yes","Ja","Oui","Sí"]
[{"$f":"CELL(\"address\",'Order form'!Q55)","v":"'[STRATOS_Order form_2021.xlsm]Order form'!$Q$55"},"Dropdown","No","Nein","Non","No"]
[{"$f":"CELL(\"address\",'Order form'!Q56)","v":"'[STRATOS_Order form_2021.xlsm]Order form'!$Q$56"},"Dropdown","Yes","Ja","Oui","Sí"]
[{"$f":"CELL(\"address\",'Order form'!Q56)","v":"'[STRATOS_Order form_2021.xlsm]Order form'!$Q$56"},"Dropdown","No","Nein","Non","No"]
[{"$f":"CELL(\"address\",'Order form'!Q57)","v":"'[STRATOS_Order form_2021.xlsm]Order form'!$Q$57"},"Dropdown","Yes","Ja","Oui","Sí"]
[{"$f":"CELL(\"address\",'Order form'!Q57)","v":"'[STRATOS_Order form_2021.xlsm]Order form'!$Q$57"},"Dropdown","No","Nein","Non","No"]
[{"$f":"CELL(\"address\",'Order form'!B59)","v":"'[STRATOS_Order form_2021.xlsm]Order form'!$B$59"},"Label","Further specifications","Weitere Optionen","Autres options","Especificaciones adicionales"]
[{"$f":"CELL(\"address\",'Order form'!B60)","v":"'[STRATOS_Order form_2021.xlsm]Order form'!$B$60"},"Label","Protective cover for outdoor platform","Plastikabdeckung für Außenanlage","Housse plastique pour unité extérieur","Cubierta de plástico para elevador al aire libre"]
[{"$f":"CELL(\"address\",'Order form'!B61)","v":"'[STRATOS_Order form_2021.xlsm]Order form'!$B$61"},"Label","Padlock against unfolding of manual platform","Schloss für manuelle Plattform","Verrouillage de plate-forme","Candado contra el despliegue de la plataforma"]
[{"$f":"CELL(\"address\",'Order form'!B62)","v":"'[STRATOS_Order form_2021.xlsm]Order form'!$B$62"},"Label","Rail fillings","Verkleidung zwischen den Stützen","-","Rellenos de la guia"]
[{"$f":"CELL(\"address\",'Order form'!B63)","v":"'[STRATOS_Order form_2021.xlsm]Order form'!$B$63"},"Label","Warranty","Warranty time","Temps de garantie","Garantía"]
[{"$f":"CELL(\"address\",'Order form'!B69)","v":"'[STRATOS_Order form_2021.xlsm]Order form'!$B$69"},"Label","Stainless steel label","Stainless steel label","Étiquette en acier inoxydable","Etiqueta de acero inoxidable"]
[{"$f":"CELL(\"address\",'Order form'!B70)","v":"'[STRATOS_Order form_2021.xlsm]Order form'!$B$70"},"Label","Transport box","Transportkiste","Boîte de transport","Caja de transporte"]
[{"$f":"CELL(\"address\",'Order form'!Q60)","v":"'[STRATOS_Order form_2021.xlsm]Order form'!$Q$60"},"Dropdown","Yes (for outdoor)","Ja (für Außenanlage)","Oui","Sí (para exterior)"]
[{"$f":"CELL(\"address\",'Order form'!Q60)","v":"'[STRATOS_Order form_2021.xlsm]Order form'!$Q$60"},"Dropdown","No","Nein","Non","No"]
[{"$f":"CELL(\"address\",'Order form'!Q61)","v":"'[STRATOS_Order form_2021.xlsm]Order form'!$Q$61"},"Dropdown","No (standard)","Nein (Standard)","Non (standard)","No (estándar)"]
[{"$f":"CELL(\"address\",'Order form'!Q61)","v":"'[STRATOS_Order form_2021.xlsm]Order form'!$Q$61"},"Dropdown","Yes","Ja","Oui","Sí"]
[{"$f":"CELL(\"address\",'Order form'!Q62)","v":"'[STRATOS_Order form_2021.xlsm]Order form'!$Q$62"},"Dropdown","None","None","None","Ninguno"]
[{"$f":"CELL(\"address\",'Order form'!Q62)","v":"'[STRATOS_Order form_2021.xlsm]Order form'!$Q$62"},"Dropdown","Connex glass","Connex glass","Connex glass","Vidrio Connex"]
[{"$f":"CELL(\"address\",'Order form'!Q62)","v":"'[STRATOS_Order form_2021.xlsm]Order form'!$Q$62"},"Dropdown","Perforated metal plates","Perforated metal plates","Perforated metal plates","Chapas perforadas"]
[{"$f":"CELL(\"address\",'Order form'!Q62)","v":"'[STRATOS_Order form_2021.xlsm]Order form'!$Q$62"},"Dropdown","Wooden","Wooden","Wooden","De madera"]
[{"$f":"CELL(\"address\",'Order form'!Q62)","v":"'[STRATOS_Order form_2021.xlsm]Order form'!$Q$62"},"Dropdown","Steel rods","Steel rods","Steel rods","Varillas de acero"]
[{"$f":"CELL(\"address\",'Order form'!Q62)","v":"'[STRATOS_Order form_2021.xlsm]Order form'!$Q$62"},"Dropdown","Stainless steel rods","Stainless steel rods","Stainless steel rods","Varillas de acero inoxidable"]
[{"$f":"CELL(\"address\",'Order form'!Q69)","v":"'[STRATOS_Order form_2021.xlsm]Order form'!$Q$69"},"Dropdown","None","None","None","Ninguno"]
[{"$f":"CELL(\"address\",'Order form'!Q69)","v":"'[STRATOS_Order form_2021.xlsm]Order form'!$Q$69"},"Dropdown","ALTECH","ALTECH","ALTECH","ALTECH"]
[{"$f":"CELL(\"address\",'Order form'!Q69)","v":"'[STRATOS_Order form_2021.xlsm]Order form'!$Q$69"},"Dropdown","ARES","ARES","ARES","ARES"]
[{"$f":"CELL(\"address\",'Order form'!Q69)","v":"'[STRATOS_Order form_2021.xlsm]Order form'!$Q$69"},"Dropdown","LEHNER","LEHNER","LEHNER","LEHNER"]
[{"$f":"CELL(\"address\",'Order form'!Q69)","v":"'[STRATOS_Order form_2021.xlsm]Order form'!$Q$69"},"Dropdown","WEIGL","WEIGL","WEIGL","WEIGL"]
[{"$f":"CELL(\"address\",'Order form'!Q69)","v":"'[STRATOS_Order form_2021.xlsm]Order form'!$Q$69"},"Dropdown","OTIS","OTIS","OTIS","OTIS"]
[{"$f":"CELL(\"address\",'Order form'!Q69)","v":"'[STRATOS_Order form_2021.xlsm]Order form'!$Q$69"},"Dropdown","STANNAH","STANNAH","STANNAH","STANNAH"]
[{"$f":"CELL(\"address\",'Order form'!Q69)","v":"'[STRATOS_Order form_2021.xlsm]Order form'!$Q$69"},"Dropdown","TERRY","TERRY","TERRY","TERRY"]
[{"$f":"CELL(\"address\",'Order form'!Q70)","v":"'[STRATOS_Order form_2021.xlsm]Order form'!$Q$70"},"Dropdown","-","-","-","-"]
[{"$f":"CELL(\"address\",'Order form'!Q70)","v":"'[STRATOS_Order form_2021.xlsm]Order form'!$Q$70"},"Dropdown","Q1 - Standardbox","Q1 - Standard Transportkiste","Q1 - Standardbox","Q1 - Standardbox"]
[{"$f":"CELL(\"address\",'Order form'!Q70)","v":"'[STRATOS_Order form_2021.xlsm]Order form'!$Q$70"},"Dropdown","Q3 - Fumigated wooden box for airfreight","Q3 - Behandelte Transportkiste für Luftfracht","Q3 air cargo","Carga aérea Q3"]
[{"$f":"CELL(\"address\",'Order form'!Q70)","v":"'[STRATOS_Order form_2021.xlsm]Order form'!$Q$70"},"Dropdown","Q3 - Fumigated wooden box for seafreight","Q3 - Behandelte Transportkiste für Seefracht","Q3 non air cargo","Carga no aérea Q3"]
[{"$f":"CELL(\"address\",'Order form'!B75)","v":"'[STRATOS_Order form_2021.xlsm]Order form'!$B$75"},"Label","Surface treatment","Oberflächenbehandlung","Traitement de surface","Tratamiento de superficies"]
[{"$f":"CELL(\"address\",'Order form'!B76)","v":"'[STRATOS_Order form_2021.xlsm]Order form'!$B$76"},"Label","Platform and carriage","Plattform und Fahrwagen","Plate-forme et chariot","Plataforma y carro"]
[{"$f":"CELL(\"address\",'Order form'!B77)","v":"'[STRATOS_Order form_2021.xlsm]Order form'!$B$77"},"Label","Rail and brackets","Schiene","Rail","Guía"]
[{"$f":"CELL(\"address\",'Order form'!B78)","v":"'[STRATOS_Order form_2021.xlsm]Order form'!$B$78"},"Label","Pillars","Stützen","Supports","Pilares"]
[{"$f":"CELL(\"address\",'Order form'!Q76)","v":"'[STRATOS_Order form_2021.xlsm]Order form'!$Q$76"},"Dropdown","RAL 7035 (standard)","RAL 7035 (Standard)","RAL 7035 (standard)","RAL 7035 (estándar)"]
[{"$f":"CELL(\"address\",'Order form'!Q76)","v":"'[STRATOS_Order form_2021.xlsm]Order form'!$Q$76"},"Dropdown","RAL 9007 (standard)","RAL 9007 (Standard)","RAL 9007 (standard)","RAL 9007 (estándar)"]
[{"$f":"CELL(\"address\",'Order form'!Q76)","v":"'[STRATOS_Order form_2021.xlsm]Order form'!$Q$76"},"Dropdown","Special RAL","Spezial RAL","Special RAL","Special RAL"]
[{"$f":"CELL(\"address\",'Order form'!Q76)","v":"'[STRATOS_Order form_2021.xlsm]Order form'!$Q$76"},"Dropdown","Zinc + RAL 7035 (outdoor standard)","Verzinkt + RAL 7035 (Außenanlage standard)","Galvanisé + RAL 7035 (extérieure)","Zinc + RAL 7035 (estándar para exteriores)"]
[{"$f":"CELL(\"address\",'Order form'!Q76)","v":"'[STRATOS_Order form_2021.xlsm]Order form'!$Q$76"},"Dropdown","Zinc + RAL 9007 (outdoor standard)","Verzinkt + RAL 9007 (Außenanlage standard)","Galvanisé + RAL 9007 (extérieure)","Zinc + RAL 9007 (estándar para exteriores)"]
[{"$f":"CELL(\"address\",'Order form'!Q76)","v":"'[STRATOS_Order form_2021.xlsm]Order form'!$Q$76"},"Dropdown","Zinc + Special RAL (outdoor special)","Verzinkt + Spezial RAL (Außenanlage spezial)","Galvanisé + Special RAL (extérieure special)","Zinc + Special RAL (especial para exteriores)"]
[{"$f":"CELL(\"address\",'Order form'!Q76)","v":"'[STRATOS_Order form_2021.xlsm]Order form'!$Q$76"},"Dropdown","Stainless + Special RAL","Edelstahl + Spezial RAL","Acier inoxydable + Special RAL","Inoxidable + Special RAL"]
[]
[{"$f":"CELL(\"address\",'Order form'!Q77)","v":"'[STRATOS_Order form_2021.xlsm]Order form'!$Q$77"},"Dropdown","RAL 7035 (standard)","RAL 7035 (Standard)","RAL 7035 (standard)","RAL 7035 (estándar)"]
[{"$f":"CELL(\"address\",'Order form'!Q77)","v":"'[STRATOS_Order form_2021.xlsm]Order form'!$Q$77"},"Dropdown","RAL 9007 (standard)","RAL 9007 (Standard)","RAL 9007 (standard)","RAL 9007 (estándar)"]
[{"$f":"CELL(\"address\",'Order form'!Q77)","v":"'[STRATOS_Order form_2021.xlsm]Order form'!$Q$77"},"Dropdown","Special RAL","Spezial RAL","Special RAL","Special RAL"]
[{"$f":"CELL(\"address\",'Order form'!Q77)","v":"'[STRATOS_Order form_2021.xlsm]Order form'!$Q$77"},"Dropdown","Zinc + RAL 7035 (outdoor standard)","Verzinkt + RAL 7035 (Außenanlage standard)","Galvanisé + RAL 7035 (extérieure)","zinc + RAL 7035 (estándar para exteriores)"]
[{"$f":"CELL(\"address\",'Order form'!Q77)","v":"'[STRATOS_Order form_2021.xlsm]Order form'!$Q$77"},"Dropdown","Zinc + RAL 9007 (outdoor standard)","Verzinkt + RAL 9007 (Außenanlage standard)","Galvanisé + RAL 9007 (extérieure)","Zinc + RAL 9007 (estándar para exteriores)"]
[{"$f":"CELL(\"address\",'Order form'!Q77)","v":"'[STRATOS_Order form_2021.xlsm]Order form'!$Q$77"},"Dropdown","Zinc + Special RAL (outdoor special)","Verzinkt + Spezial RAL (Außenanlage spezial)","Galvanisé + Special RAL (extérieure special)","Zinc + Special RAL (especial para exteriores)"]
[{"$f":"CELL(\"address\",'Order form'!Q77)","v":"'[STRATOS_Order form_2021.xlsm]Order form'!$Q$77"},"Dropdown","Stainless 304","Edelstahl 304","Acier inoxydable 304","Inoxidable 304"]
[{"$f":"CELL(\"address\",'Order form'!Q77)","v":"'[STRATOS_Order form_2021.xlsm]Order form'!$Q$77"},"Dropdown","Stainless 316 (special surcharge)","Edelstahl 316 (Spezialaufpreis)","Acier inoxydable 316 (special)","Inoxidable 316 (especial)"]
[{"$f":"CELL(\"address\",'Order form'!Q78)","v":"'[STRATOS_Order form_2021.xlsm]Order form'!$Q$78"},"Dropdown","-","-","-","-"]
[{"$f":"CELL(\"address\",'Order form'!Q78)","v":"'[STRATOS_Order form_2021.xlsm]Order form'!$Q$78"},"Dropdown","RAL 7035 (standard)","RAL 7035 (Standard)","RAL 7035 (standard)","RAL 7035 (estándar)"]
[{"$f":"CELL(\"address\",'Order form'!Q78)","v":"'[STRATOS_Order form_2021.xlsm]Order form'!$Q$78"},"Dropdown","RAL 9007 (standard)","RAL 9007 (Standard)","RAL 9007 (standard)","RAL 9007 (estándar)"]
[{"$f":"CELL(\"address\",'Order form'!Q78)","v":"'[STRATOS_Order form_2021.xlsm]Order form'!$Q$78"},"Dropdown","Special RAL","Spezial RAL","Special RAL","Special RAL"]
[{"$f":"CELL(\"address\",'Order form'!Q78)","v":"'[STRATOS_Order form_2021.xlsm]Order form'!$Q$78"},"Dropdown","Zinc + RAL 7035 (outdoor standard)","Verzinkt + RAL 7035 (Außenanlage standard)","Galvanisé + RAL 7035 (extérieure)","Zinc + RAL 7035 (estándar para exteriores)"]
[{"$f":"CELL(\"address\",'Order form'!Q78)","v":"'[STRATOS_Order form_2021.xlsm]Order form'!$Q$78"},"Dropdown","Zinc + RAL 9007 (outdoor standard)","Verzinkt + RAL 9007 (Außenanlage standard)","Galvanisé + RAL 9007 (extérieure)","Zinc + RAL 9007 (estándar para exteriores)"]
[{"$f":"CELL(\"address\",'Order form'!Q78)","v":"'[STRATOS_Order form_2021.xlsm]Order form'!$Q$78"},"Dropdown","Zinc + Special RAL (outdoor special)","Verzinkt + Spezial RAL (Außenanlage spezial)","Galvanisé + Special RAL (extérieure special)","Zinc + Special RAL (especial para exteriores)"]
[{"$f":"CELL(\"address\",'Order form'!Q78)","v":"'[STRATOS_Order form_2021.xlsm]Order form'!$Q$78"},"Dropdown","Stainless 304","Edelstahl 304","Acier inoxydable 304","Inoxidable 304"]
[{"$f":"CELL(\"address\",'Order form'!Q78)","v":"'[STRATOS_Order form_2021.xlsm]Order form'!$Q$78"},"Dropdown","Stainless 316 (special surcharge)","Edelstahl 316 (Spezialaufpreis)","Acier inoxydable 316 (special)","Inoxidable 316 (especial)"]
[{"$f":"CELL(\"address\",'Order form'!B80)","v":"'[STRATOS_Order form_2021.xlsm]Order form'!$B$80"},"Label","Supporting structure","Art der Befestigung","Structure de support","Estructura de soporte"]
[{"$f":"CELL(\"address\",'Order form'!B81)","v":"'[STRATOS_Order form_2021.xlsm]Order form'!$B$81"},"Label","Fixing of the rails","Fixierung der Schiene","Fixation des rails","Fijación de la guía"]
[{"$f":"CELL(\"address\",'Order form'!B82)","v":"'[STRATOS_Order form_2021.xlsm]Order form'!$B$82"},"Label","Arrangement of pillars","Stützenanordnung","Emplacement des supports","Arreglo de pilares"]
[{"$f":"CELL(\"address\",'Order form'!B83)","v":"'[STRATOS_Order form_2021.xlsm]Order form'!$B$83"},"Label","Vertical adjustment slots on pillars","Vertikale Einstellschlitze an den Stützen","Fentes verticales de réglage sur les supports","Ranuras de ajuste en los pilares"]
[{"$f":"CELL(\"address\",'Order form'!B84)","v":"'[STRATOS_Order form_2021.xlsm]Order form'!$B$84"},"Label","Pillar base","Pillar base","Pillar base","Base del pilar"]
[{"$f":"CELL(\"address\",'Order form'!Q81)","v":"'[STRATOS_Order form_2021.xlsm]Order form'!$Q$81"},"Dropdown","On the wall only","An die Wand","Directement au mur","Solo en la pared"]
[{"$f":"CELL(\"address\",'Order form'!Q81)","v":"'[STRATOS_Order form_2021.xlsm]Order form'!$Q$81"},"Dropdown","On the wall + pillars","Auf Stützen und Wand","Sur supports et mur","En la pared + pilares"]
[{"$f":"CELL(\"address\",'Order form'!Q81)","v":"'[STRATOS_Order form_2021.xlsm]Order form'!$Q$81"},"Dropdown","On the pillars only","Auf Stützen","Sur supports","Solo en los pilares"]
[{"$f":"CELL(\"address\",'Order form'!Q82)","v":"'[STRATOS_Order form_2021.xlsm]Order form'!$Q$82"},"Dropdown","-","-","-","-"]
[{"$f":"CELL(\"address\",'Order form'!Q82)","v":"'[STRATOS_Order form_2021.xlsm]Order form'!$Q$82"},"Dropdown","On the steps (standard)","Auf den Stufen","Sue les marches","En los escalones (estándar)"]
[{"$f":"CELL(\"address\",'Order form'!Q82)","v":"'[STRATOS_Order form_2021.xlsm]Order form'!$Q$82"},"Dropdown","On the string of the staircase","An die Treppenwange","Contre le limon de l'escalier","En la cuerda de la escalera"]
[{"$f":"CELL(\"address\",'Order form'!Q82)","v":"'[STRATOS_Order form_2021.xlsm]Order form'!$Q$82"},"Dropdown","Along the string of the staircase and down to the ground floor","Entlang der Treppenwange auf den Boden","Contre le limon et posés sur le sol dans le vide de l'escalier","A lo largo de la cuerda de la escalera y hasta la planta baja."]
[{"$f":"CELL(\"address\",'Order form'!Q83)","v":"'[STRATOS_Order form_2021.xlsm]Order form'!$Q$83"},"Dropdown","-","-","-","-"]
[{"$f":"CELL(\"address\",'Order form'!Q83)","v":"'[STRATOS_Order form_2021.xlsm]Order form'!$Q$83"},"Dropdown","Yes","Ja","Oui","Sí"]
[{"$f":"CELL(\"address\",'Order form'!Q83)","v":"'[STRATOS_Order form_2021.xlsm]Order form'!$Q$83"},"Dropdown","No","Nein","Non","No"]
[{"$f":"CELL(\"address\",'Order form'!Q84)","v":"'[STRATOS_Order form_2021.xlsm]Order form'!$Q$84"},"Dropdown","not specified","nicht spezifiziert","not specified","no especificado"]
[{"$f":"CELL(\"address\",'Order form'!Q84)","v":"'[STRATOS_Order form_2021.xlsm]Order form'!$Q$84"},"Dropdown","triangle","Dreieck","triangle","triangular"]
[{"$f":"CELL(\"address\",'Order form'!Q84)","v":"'[STRATOS_Order form_2021.xlsm]Order form'!$Q$84"},"Dropdown","diamond","Diamant","diamond","diamante"]
[{"$f":"CELL(\"address\",'Order form'!Q84)","v":"'[STRATOS_Order form_2021.xlsm]Order form'!$Q$84"},"Dropdown","long diamond","Langer Diamant","long diamond","diamante largo"]
[{"$f":"CELL(\"address\",'Order form'!B88)","v":"'[STRATOS_Order form_2021.xlsm]Order form'!$B$88"},"Label","Additional information","Zusätzliche Information","Information additionnelle","Información adicional"]
[{"$f":"CELL(\"address\",'Order form'!B97)","v":"'[STRATOS_Order form_2021.xlsm]Order form'!$B$97"},"Label","Delivery date","Lieferdatum","Date de livraison","Fecha de entrega"]
[{"$f":"CELL(\"address\",'Order form'!V97)","v":"'[STRATOS_Order form_2021.xlsm]Order form'!$V$97"},"Label","Prepared by","Bearbeitet von","Preparé par","Preparado por"]
[{"$f":"CELL(\"address\",'Order form'!H97)","v":"'[STRATOS_Order form_2021.xlsm]Order form'!$H$97"},"Label","Week","Woche","Semaine","Semana"]

{"sheet":"LangBackup","index":3,"n_rows":164,"n_cols":5,"rows_kept":164,"cut":false,"hidden":true,"merged":[]}
["Cell","Type","English","Deutsch","French"]
["Q3","Label","ALPHA stairlift","Alpha Treppenlift"]
["Q4","Label","Order form","Bestellformular","Bon de commande"]
["D3","Label","Dimension No.","Abmessung Nr.","Numéro de dimension"]
["D5","Label","Language","Sprache","La langue"]
["AD3","Label","Date:","Datum:","l' date"]
["AD4","Label","Version:","Version:","Version"]
["P6","Label","Distributor: (always fill out)","Händler: (immer ausfüllen)","Distributeur: (remplissez toujours)"]
["AB6","Label","Delivery address: (always fill out)","Lieferadresse: (immer ausfüllen)","Adresse de livraison: (remplissez toujours)"]
["P7","Label","Company:","Firma:","Enterprise"]
["B7","Label","Company:","Firma:","Enterprise"]
["P9","Label","Address","Anschrift","Une robe"]
["AB9","Label","Address","Anschrift","Une robe"]
["P10","Label","Postcode","Postleitzahl","Code postal"]
["AB10","Label","Postcode","Postleitzahl","Code postal"]
["P11","Label","City","Stadt","Ville"]
["AB11","Label","City","Stadt","Ville"]
["P12","Label","Country","Land","le pays"]
["AB12","Label","Country","Land","le pays"]
["D23","Label","Installation location","Installationsort"]
["D24","Label","Installation side","Montageseite","Côté d'installation"]
["C17","Label","Pick up address for lifts: Spedition Englmayer, Wiesenstrasse 71, 4600 Wels, Austria","ABHOLADRESSE: Spedition Englmayer, Wiesenstrasse 71, 4600 Wels, Austria"]
["C19","Label","Production No.","Produktionsnummer"]
["I19","Label","Order reference name (or number)","Auftragsreferenz (Name oder Nummer)"]
["C22","Label","Rail specification","Schienenspezifikation"]
["D25","Label","Rail length in meters rounded","Schienenlänge (ungefähr in m)","Longueur du rail en mètres arrondis"]
["D26","Label","Lower stop","Untere Haltestelle","Arrêt inférieur"]
["D27","Label","Upper stop","Obere Haltestelle","Arrêt supérieur"]
["D28","Label","Number of 90° curves","Anzahl der 90° Kurven","Nombre de courbes à 90°"]
["D28","Label","Number of 180° curves","Anzahl der 180° Kurven","Nombre de courbes à 180°"]
["D30","Label","Number of special curves","Anzahl der Spezialkurven","Nombre de courbes spéciales"]
["D31","Label","Number of negative curves","Anzahl der Negativkurven"]
["D32","Label","Number of vertical bends","Number of vertical bends"]
["D33","Label","Number of intermediate stops","Anzahl der Zwischenhaltestellen"]
["D34","Label","Rail surface treatment","Schienenfarbe"]
["AD26","Formula","=IF(R26=\"straight start with bottom overrun\",\"mm from first step to end of chair\", \"\")","=IF(R26=\"Gerade mit horizontalem Auslauf\",\"mm von erster Stufe bis Ende Sitz\", \"\")"]
["AD27","Formula","=IF(R27=\"straight top overrun\",\"mm from last step to end of chair\", \"\")","=IF(R27=\"Gerader Überlauf\",\"mm von letzter Stufe bis Ende Sitz\", \"\")"]
["R23","Dropdown","Indoor","Innen"]
["R23","Dropdown","Outdoor","Im Außenbereich"]
["R24","Dropdown","Left","Links","La gauche"]
["R24","Dropdown","Right","Rechts","Droite"]
["R26","Dropdown","Straight","Gerade","Tout droit"]
["R26","Dropdown","Straight with steep start","Gerade mit Steilstart","Droit avec début raide"]
["R26","Dropdown","Straight start with bottom overrun","Gerade mit horizontalem Auslauf","Début droit avec dépassement du bas"]
["R26","Dropdown","90°","90°","90°"]
["R26","Dropdown","180°","180°","180°"]
["R26","Dropdown","Special curve","Spezialkurve","Courbe spéciale"]
["R27","Dropdown","Straight at last step","Gerade an letzter Stufe","Droit à la dernière étape"]
["R27","Dropdown","Straight top overrun","Gerader Überlauf","Débordement droit"]
["R27","Dropdown","90° on top landing","90° auf oberem Podest","Atterrissage supérieur à 90°"]
["R27","Dropdown","180° on top landing","180° auf oberem Podest","Atterrissage supérieur à 180°"]
["R27","Dropdown","Special curve on top landing","Spezialkurve auf oberem Podest","Courbe spéciale sur le palier supérieur"]
["R34","Dropdown","RAL 7035 (standard)","RAL 7035 (Standard)"]
["R34","Dropdown","special RAL","Spezial RAL"]
["R34","Dropdown","zinc + RAL 7035","Verzinkt + RAL 7035"]
["R34","Dropdown","zinc + special RAL","Verzinkt + spezial RAL"]
["C36","Label","Design specifications","Sitz Design Optionen","Les spécifications de conception"]
["D37","Label","Execution","Ausführung","Exécution"]
["D38","Label","Seat design type","Sitz Design Typ","Type de conception du siège"]
["D39","Label","Upholstery","Sitzfarbe","Tapisserie"]
["D40","Label","Automatic footrest folding","Automatisches Fußbrett","Repose-pied automatique"]
["D41","Label","Automatic seat swivel","Automatischer Drehsitz","Siège pivotant automatique"]
["D42","Label","Bigger armrest distance (+100mm)","Größere Distanz zwischen Armlehnen ","Plus grande distance d'accoudoir (+ 100mm)"]
["D43","Label","Joystick position side","Joystickposition","Position du joystick"]
["D44","Label","External landing controls (always radio)","Externe Landekontrollen (immer Radio)","Contrôles d'atterrissage externes (toujours radio)"]
["D45","Label","Type of key","Art des Schlüssels","Type de clé"]
["D46","Label","Total no. of external landing controls","Anzahl Fernbedienungen gesamt","Nombre total de contrôles d'atterrissage externes"]
["D47","Label","Postion of external controls","Stellung externer Kontrollen","Position des contrôles externes"]
["R37","Dropdown","Stairlift + rail (standard)","Kompletter Lift "]
["R37","Dropdown","Rail only","Nur Schiene"]
["AS39","Label","Blue","Blau","Bleu"]
["AS40","Label","Red","rot","rouge"]
["AS41","Label","Brown","Braun","marron"]
["AS42","Label","Green","Grün","vert"]
["AS43","Label","Beige","Beige","Beige"]
["AS44","Label","Light gray","Hellgrau","Gris clair"]
["AT39","Label","Marine blue","Marineblau","Bleu marine"]
["AT40","Label","Emerald green","Smaragdgrün","vert émeraude"]
["AT41","Label","Ruby red","Rubinrot","rouge rubis"]
["AT42","Label","Pearl white","Perlweiss","Perle blanche"]
["AT43","Label","Walnut brown","Walnussbraun","Marron"]
["AT44","Label","Safran yellow","Safran-Gelb","Jaune safran"]
["AU39","Label","Marine blue","Marineblau","Bleu marine"]
["AU40","Label","Emerald green","Smaragdgrün","vert émeraude"]
["AU41","Label","Ruby red","Rubinrot","rouge rubis"]
["AU42","Label","Pearl white","Perlweiss","Perle blanche"]
["AU43","Label","Walnut brown","Walnussbraun","Marron"]
["AU44","Label","Safran yellow","Safran-Gelb","Jaune safran"]
["AV39","Label","Olive (woven textile)","Olive (gewebtes Textil)","Olive (textile tissé)"]
["AV40","Label","Granite (woven textile)","Granit (gewebtes Textil)","Granite (textile tissé)"]
["AV41","Label","Bordeaux (woven textile)","Bordeaux (gewebtes Textil)","Bordeaux (textile tissé)"]
["AV42","Label","Marble (woven textile)","Marmor (gewebtes Textil)","Marbre (textile tissé)"]
["AV43","Label","Ivory (woven textile)","Elfenbein (gewebtes Textil)","Ivoire (textile tissé)"]
["AV44","Label","Basalt (artificial leather)","Basalt (Kunstleder)","Basalte (cuir artificiel)"]
["AV45","Label","Burgundy (artificial leather)","Burgund (Kunstleder)","Bourgogne (cuir artificiel)"]
["AV46","Label","Mocha (artificial leather)","Mokka (Kunstleder)","Moka (cuir artificiel)"]
["R39","Switch","Blue","Blau","Bleu"]
["R39","Switch","Red","rot","rouge"]
["R39","Switch","Brown","Braun","marron"]
["R39","Switch","Green","Grün","vert"]
["R39","Switch","Beige","Beige","Beige"]
["R39","Switch","Light gray","Hellgrau","Gris clair"]
["R39","Switch","Marine blue","Marineblau","Bleu marine"]
["R39","Switch","Emerald green","Smaragdgrün","vert émeraude"]
["R39","Switch","Ruby red","Rubinrot","rouge rubis"]
["R39","Switch","Pearl white","Perlweiss","Perle blanche"]
["R39","Switch","Walnut brown","Walnussbraun","Marron"]
["R39","Switch","Safran yellow","Safran-Gelb","Jaune safran"]
["R39","Switch","Olive (woven textile)","Olive (gewebtes Textil)","Olive (textile tissé)"]
["R39","Switch","Granite (woven textile)","Granit (gewebtes Textil)","Granite (textile tissé)"]
["R39","Switch","Bordeaux (woven textile)","Bordeaux (gewebtes Textil)","Bordeaux (textile tissé)"]
["R39","Switch","Marble (woven textile)","Marmor (gewebtes Textil)","Marbre (textile tissé)"]
["R39","Switch","Ivory (woven textile)","Elfenbein (gewebtes Textil)","Ivoire (textile tissé)"]
["R39","Switch","Basalt (artificial leather)","Basalt (Kunstleder)","Basalte (cuir artificiel)"]
["R39","Switch","Burgundy (artificial leather)","Burgund (Kunstleder)","Bourgogne (cuir artificiel)"]
["R39","Switch","Mocha (artificial leather)","Mokka (Kunstleder)","Moka (cuir artificiel)"]
["R40","Dropdown","Yes","Ja","Oui"]
["R40","Dropdown","No","Nein","Non"]
["R41","Dropdown","Yes","Ja","Oui"]
["R41","Dropdown","No","Nein","Non"]
["R42","Dropdown","Yes","Ja","Oui"]
["R42","Dropdown","No","Nein","Non"]
["R43","Dropdown","On downstairs side (standard)","Talseitig","Côté bas (standard)"]
["R43","Dropdown","On upstairs side (optional)","Bergseitig","Du côté de l'étage (facultatif)"]
["R44","Dropdown","Membrane keypad (standard)","Folientastatur (Standard)","Clavier à membrane (standard)"]
["R44","Dropdown","Big push buttons","Großer Taster","Gros boutons poussoirs"]
["R45","Dropdown","Without key","Ohne Schlüssel","Sans clé"]
["R45","Dropdown","Mini key","Minischlüssel","Mini clé"]
["R47","Dropdown","Handset","Handkassette","Combiné"]
["R47","Dropdown","Wall-mounted","Wantmontiert","Mural"]
["R47","Dropdown","Pillar-mounted","Stützenmontiert","Monté sur pilier"]
["C49","Label","Further options","Zusätzliche Optionen"]
["D50","Label","Plastic cover for outdoor stairlift","Plastic cover for outdoor stairlift"]
["D54","Label","Warranty time","Warranty time"]
["D55","Label","Stainless steel label","Stainless steel label"]
["D56","Label","Transport box","Transportbox"]
["D59","Label","Drawing time urgency in working days","Drawing time urgency in days"]
["D60","Label","Service display","Service display"]
["D61","Label","Plastic cover for footplates","Kunststoffabdeckung für Stützenfüße"]
["D62","Label","Stand-up seat version (up to 120 kg)","Variante Stehsitz (bis zu 120 kg)"]
["D63","Label","Higher loading capacity of 145kg","Höhere Traglast bis 145 kg"]
["D64","Label","Optional user dimensions","Benutzergröße (optional)"]
["D65","Label","Extra heavy batteries","Extra starke Batterien"]
["R64","Label","Height from seat to head:","Maß Sitz bis Kopf"]
["AC64","Label","Distance from back to knees:","Maß Rücken bis Knie"]
["R50","Dropdown","Yes","Ja","Oui"]
[{"$f":"A146","v":"R50"},"Dropdown","No","Nein","Non"]
["R60","Dropdown","Yes","Ja","Oui"]
[{"$f":"A148","v":"R60"},"Dropdown","No","Nein","Non"]
["R61","Dropdown","Yes","Ja","Oui"]
[{"$f":"A150","v":"R61"},"Dropdown","No","Nein","Non"]
["R62","Dropdown","Yes","Ja","Oui"]
[{"$f":"A152","v":"R62"},"Dropdown","No","Nein","Non"]
["R63","Dropdown","Yes","Ja","Oui"]
[{"$f":"A154","v":"R63"},"Dropdown","No","Nein","Non"]
["C67","Label","Supporting structure","Art der Befestigung"]
["D68","Label","Fixing of the rails","Fixierung der Schiene"]
["R68","Dropdown","into the steps (standard)","Auf Stützen in die Treppe"]
["R68","Dropdown","clamp fixing on the steps","Mit Klemmen an die Treppe"]
["R68","Dropdown","on the wall with supporting pillars","An die Wand"]
["C72","Label","Additional information","Zusätzliche Information"]
["C81","Label","Delivery date","Lieferdatim:"]
["W81","Label","Prepared by","Bearbeitet von:"]
["K81","Label","Week","Woche","la semaine"]

{"sheet":"Setup","index":4,"n_rows":1,"n_cols":2,"rows_kept":1,"cut":false,"hidden":true,"merged":[]}
["Language","Español"]